bitfinex/quotes_SOLUSD_20240909
["timestamp","ask_amount","ask_price","bid_price","bid_amount"]
[1725881137070,21.363,129.99,129.94,15.89855996]
[1725881138880,21.363,129.99,129.95,1.53887344]
[1725881139071,32.99342843,130.02,129.96,17.43723639]
[1725881139270,22.1175,130.03,129.96,15.89855996]
[1725881139663,43.39932504,130.02,129.96,15.89855996]
[1725881141065,43.39932504,130.02,129.93,15.1829]
[1725881141267,54.25727184,130.02,129.94,65.0]
[1725881141467,54.25727184,130.02,129.94,20.0]
[1725881141468,42.72054366,130.01,129.94,20.0]
[1725881142089,42.72054366,130.01,129.93,20.0]
[1725881143165,6.052,129.99,129.92,20.0]
[1725881143373,6.052,129.99,129.93,45.0]
[1725881143752,6.052,129.99,129.92,15.89855996]
[1725881144283,6.052,129.99,129.9,15.89855996]
[1725881144494,16.2061,129.98,129.88,15.89855996]
[1725881144799,64.84375465,129.98,129.88,15.89855996]
[1725881145094,60.69571434,129.97,129.88,15.89855996]
[1725881145289,21.7043,129.96,129.85,2.46959919]
[1725881145464,21.7043,129.96,129.87,15.89855996]
[1725881146091,21.7043,129.96,129.88,20.0]
[1725881146888,29.399,129.96,129.88,20.0]
[1725881147192,29.399,129.96,129.87,20.0]
[1725881147563,21.7043,129.96,129.87,20.0]
[1725881148189,21.7043,129.96,129.88,15.89855996]
[1725881148397,21.7043,129.96,129.89,45.0]
[1725881149167,21.7043,129.96,129.88,15.89855996]
[1725881151386,21.7043,129.96,129.89,45.0]
[1725881156293,21.7043,129.96,129.9,15.89855996]
[1725881156499,21.7043,129.96,129.91,1.53920154]
[1725881157996,21.7043,129.96,129.9,15.89855996]
[1725881159112,21.7043,129.96,129.91,45.0]
[1725881161514,21.7043,129.96,129.9,15.89855996]
[1725881163604,21.7043,129.96,129.88,18.36838375]
[1725881163808,21.7043,129.96,129.89,65.0]
[1725881164419,21.7043,129.96,129.9,15.89855996]
[1725881165401,21.7043,129.96,129.89,65.0]
[1725881167097,29.399,129.96,129.88,15.89855996]
[1725881167305,29.399,129.96,129.84,22.4290219]
[1725881167306,29.399,129.96,129.86,15.89855996]
[1725881167618,29.399,129.96,129.87,65.0]
[1725881169533,15.2265,129.95,129.87,65.0]
[1725881170119,6.1141,129.94,129.87,65.0]
[1725881174423,6.1141,129.94,129.87,45.0]
[1725881179596,6.1141,129.94,129.88,15.89855996]
[1725881182524,6.1141,129.94,129.87,45.0]
[1725881182525,6.1141,129.94,129.9,15.89855996]
[1725881184398,6.1141,129.94,129.88,15.89855996]
[1725881184602,6.1141,129.94,129.89,65.0]
[1725881186611,6.1141,129.94,129.89,20.0]
[1725881186818,6.1141,129.94,129.85,2.46995363]
[1725881187052,6.1141,129.94,129.84,16.3922219]
[1725881187053,15.9093,129.93,129.86,2.46995363]
[1725881187231,15.9093,129.93,129.84,16.3922219]
[1725881187232,15.9093,129.93,129.85,18.36851359]
[1725881187442,15.9093,129.93,129.87,15.89855996]
[1725881187614,15.9093,129.93,129.87,18.36851359]
[1725881187807,15.9093,129.93,129.87,15.89855996]
[1725881188209,15.9093,129.93,129.87,18.36851359]
[1725881188527,15.9093,129.93,129.87,15.89855996]
[1725881189213,15.9093,129.93,129.87,18.36882057]
[1725881189407,15.9093,129.93,129.87,15.89855996]
[1725881190441,15.9093,129.93,129.84,16.3922219]
[1725881190625,15.9093,129.93,129.85,80.89855996]
[1725881190934,15.9093,129.93,129.87,15.89855996]
[1725881192625,15.9093,129.93,129.88,45.0]
[1725881196732,15.9093,129.93,129.87,15.89855996]
[1725881201125,15.9093,129.93,129.85,20.0]
[1725881201326,15.9093,129.93,129.86,60.89855996]
[1725881201629,15.9093,129.93,129.87,20.0]
[1725881214651,15.9093,129.93,129.88,15.89855996]
[1725881216829,15.9093,129.93,129.87,20.0]
[1725881216830,15.9093,129.93,129.9,15.89855996]
[1725881217040,15.9093,129.93,129.9,17.43782855]
[1725881217942,15.9093,129.93,129.9,15.89855996]
[1725881219664,6.1141,129.94,129.9,15.89855996]
[1725881219959,6.1141,129.94,129.91,45.0]
[1725881220955,6.1141,129.94,129.9,15.89855996]
[1725881223856,6.1141,129.94,129.91,45.0]
[1725881224452,15.0145,129.96,129.91,45.0]
[1725881226963,15.0145,129.96,129.92,15.89855996]
[1725881230158,15.0145,129.96,129.94,15.89855996]
[1725881230341,40.69571434,129.97,129.94,15.89855996]
[1725881232743,22.2064,130.0,129.94,15.89855996]
[1725881234064,53.4354484,129.99,129.94,15.89855996]
[1725881235676,53.4354484,129.99,129.89,22.8092]
[1725881235846,53.4354484,129.99,129.92,15.89855996]
[1725881236176,53.4354484,129.99,129.93,20.0]
[1725881242660,53.26226305,129.99,129.93,20.0]
[1725881243053,15.8359,129.98,129.9,35.89855996]
[1725881244354,15.8359,129.98,129.91,45.0]
[1725881244589,15.8359,129.98,129.92,20.0]
[1725881245248,6.4922,129.97,129.92,20.0]
[1725881246361,6.4922,129.97,129.91,45.0]
[1725881246669,6.4922,129.97,129.92,20.0]
[1725881247181,6.4922,129.97,129.86,28.71064464]
[1725881247474,6.4922,129.97,129.89,15.89855996]
[1725881247658,6.4922,129.97,129.9,45.0]
[1725881271181,6.4922,129.97,129.91,15.89855996]
[1725881292214,6.4922,129.97,129.9,45.0]
[1725881294108,6.4922,129.97,129.91,15.89855996]
[1725881294802,6.4922,129.97,129.92,45.0]
[1725881302721,14.1864,129.97,129.88,15.89855996]
[1725881302898,15.3202,129.96,129.89,20.0]
[1725881305527,15.3202,129.96,129.9,45.0]
[1725881305896,15.3202,129.96,129.89,20.0]
[1725881311026,15.3202,129.96,129.9,2.46983581]
[1725881311330,15.3202,129.96,129.89,20.0]
[1725881311632,15.3202,129.96,129.9,2.46983617]
[1725881311808,15.3202,129.96,129.89,20.0]
[1725881312007,15.3202,129.96,129.9,2.46983617]
[1725881312221,15.3202,129.96,129.89,20.0]
[1725881312530,15.3202,129.96,129.9,2.46982463]
[1725881312712,15.3202,129.96,129.89,20.0]
[1725881312911,15.3202,129.96,129.9,2.46982492]
[1725881313123,15.3202,129.96,129.89,20.0]
[1725881313425,15.3202,129.96,129.9,2.46983617]
[1725881313719,15.3202,129.96,129.89,20.0]
[1725881318616,6.3105,129.95,129.84,8.5776219]
[1725881318812,6.3105,129.95,129.84,0.8566219]
[1725881318813,15.7797,129.94,129.84,0.8566219]
[1725881319013,15.7797,129.94,129.86,15.89855996]
[1725881319229,15.7797,129.92,129.86,15.89855996]
[1725881319843,15.7797,129.92,129.87,20.0]
[1725881327363,15.7797,129.92,129.88,15.89855996]
[1725881327543,15.7797,129.92,129.88,60.89855996]
[1725881334856,15.7797,129.92,129.9,15.89855996]
[1725881335241,6.3105,129.93,129.9,15.89855996]
[1725881337253,15.1795,129.95,129.9,15.89855996]
[1725881337858,15.1795,129.95,129.91,45.0]
[1725881338536,15.1795,129.95,129.92,15.89855996]
[1725881338740,6.3585,129.96,129.94,15.89855996]
[1725881339477,15.5149,129.98,129.94,15.89855996]
[1725881346853,15.5149,129.98,129.91,45.0]
[1725881346854,15.5149,129.98,129.96,15.89855996]
[1725881348572,15.5149,129.98,129.91,45.0]
[1725881348761,15.5149,129.98,129.93,15.89855996]
[1725881349073,15.5149,129.98,129.94,65.0]
[1725881351867,15.5149,129.98,129.94,80.89855996]
[1725881352849,15.5149,129.98,129.94,65.0]
[1725881353176,15.5149,129.98,129.94,80.89855996]
[1725881358280,59.76286305,129.99,129.96,15.89855996]
[1725881358489,53.26226305,129.99,129.96,15.89855996]
[1725881361771,53.26226305,129.99,129.94,80.89855996]
[1725881361968,53.26226305,129.99,129.94,65.0]
[1725881362373,53.26226305,129.99,129.94,80.89855996]
[1725881363386,53.26226305,129.99,129.94,65.0]
[1725881366487,53.26226305,129.99,129.95,15.89855996]
[1725881366690,53.26226305,129.99,129.96,45.0]
[1725881371784,53.26226305,129.99,129.97,15.89855996]
[1725881375098,16.3966,130.01,129.97,15.89855996]
[1725881375303,16.3966,130.01,129.98,45.0]
[1725881376297,16.3966,130.01,129.99,15.89855996]
[1725881376500,6.0332,130.02,129.99,15.89855996]
[1725881378082,15.4856,130.04,129.99,15.89855996]
[1725881378294,15.4856,130.04,130.01,15.89855996]
[1725881379299,57.44885734,130.05,130.01,15.89855996]
[1725881380374,51.02925734,130.05,130.03,15.89855996]
[1725881382675,51.02925734,130.05,130.03,17.43643185]
[1725881383202,15.0045,130.07,130.03,17.43643185]
[1725881383503,15.0045,130.07,130.03,15.89855996]
[1725881389891,6.0545,130.09,130.03,15.89855996]
[1725881389892,6.0545,130.09,130.04,45.0]
[1725881392109,35.95151225,130.11,130.06,15.89855996]
[1725881393405,35.95151225,130.11,130.04,45.0]
[1725881393616,35.95151225,130.11,130.05,20.0]
[1725881394420,35.95151225,130.11,130.06,60.89855996]
[1725881396403,35.95151225,130.11,130.08,15.89855996]
[1725881399305,22.5607,130.14,130.08,15.89855996]
[1725881405029,15.9154,130.14,130.1,15.89855996]
[1725881405208,31.57085307,130.15,130.1,15.89855996]
[1725881406331,31.57085307,130.15,130.12,15.89855996]
[1725881406624,31.57085307,130.15,130.13,1.53673402]
[1725881407018,31.57085307,130.15,130.13,17.43529398]
[1725881407219,15.666,130.2,130.13,15.89855996]
[1725881407421,42.20112587,130.2,130.13,15.89855996]
[1725881407594,42.20112587,130.2,130.12,20.0]
[1725881407797,42.20112587,130.2,130.12,35.89855996]
[1725881408413,25.93022508,130.19,130.12,35.89855996]
[1725881410322,25.93022508,130.19,130.1,15.1309]
[1725881410502,20.0,130.18,130.07,15.2024]
[1725881410699,7.6826,130.17,130.09,15.89855996]
[1725881410910,44.82690859,130.18,130.06,6.0957]
[1725881410911,15.6004,130.15,130.06,6.0957]
[1725881411113,23.284,130.15,130.05,15.89855996]
[1725881411501,47.97448353,130.15,130.05,15.89855996]
[1725881411726,24.91586397,130.14,130.05,15.89855996]
[1725881412611,32.59996397,130.14,130.04,15.2024]
[1725881412806,24.15830029,130.13,130.04,15.2024]
[1725881413219,24.15830029,130.13,130.05,35.89855996]
[1725881415122,24.15830029,130.13,130.06,45.0]
[1725881415629,24.15830029,130.13,130.07,15.89855996]
[1725881420811,24.10235069,130.14,130.07,15.89855996]
[1725881422022,24.10235069,130.14,130.08,45.0]
[1725881423817,24.10235069,130.14,130.09,17.43567583]
[1725881424117,24.10235069,130.14,130.1,45.0]
[1725881424314,24.10235069,130.14,130.09,15.89855996]
[1725881425617,24.10235069,130.14,130.07,15.89855996]
[1725881425832,24.10235069,130.14,130.08,65.0]
[1725881426418,24.10235069,130.14,130.08,45.0]
[1725881427337,24.10235069,130.14,130.07,15.89855996]
[1725881427544,24.10235069,130.14,130.08,20.0]
[1725881427839,24.10235069,130.14,130.05,15.89855996]
[1725881428920,22.09311744,130.14,130.05,15.89855996]
[1725881429144,22.09311744,130.14,130.06,65.0]
[1725881431416,38.03446065,130.15,130.06,65.0]
[1725881431930,38.03446065,130.15,130.07,15.89855996]
[1725881432263,21.96450629,130.14,130.09,15.89855996]
[1725881433137,21.96450629,130.14,130.07,15.89855996]
[1725881433318,21.96450629,130.14,130.08,20.0]
[1725881434154,21.96450629,130.14,130.06,45.0]
[1725881434335,21.96450629,130.14,130.07,20.0]
[1725881434648,21.96450629,130.14,130.06,20.0]
[1725881437618,21.96450629,130.14,130.07,1.5374362]
[1725881437817,21.96450629,130.14,130.07,17.43599616]
[1725881438035,21.96450629,130.14,130.07,60.89855996]
[1725881438655,21.96450629,130.14,130.08,20.0]
[1725881440143,21.96450629,130.14,130.09,4.3061164]
[1725881440330,21.96450629,130.14,130.08,20.0]
[1725881440522,37.5029435,130.15,130.09,4.30611568]
[1725881440727,37.5029435,130.15,130.08,20.0]
[1725881440946,37.5029435,130.15,130.09,4.30611592]
[1725881441152,37.5029435,130.15,130.07,20.0]
[1725881441447,37.5029435,130.15,130.08,4.3060873]
[1725881441637,37.5029435,130.15,130.09,4.3060873]
[1725881441838,37.5029435,130.15,130.07,20.0]
[1725881442053,37.5029435,130.15,130.08,4.30611664]
[1725881442226,37.5029435,130.15,130.09,4.30611664]
[1725881442426,37.5029435,130.15,130.07,20.0]
[1725881442639,37.5029435,130.15,130.08,4.30611664]
[1725881442840,37.5029435,130.15,130.09,4.30611664]
[1725881443044,37.5029435,130.15,130.07,20.0]
[1725881443242,37.5029435,130.15,130.08,4.30614478]
[1725881443444,37.5029435,130.15,130.09,4.30614478]
[1725881443630,37.5029435,130.15,130.07,20.0]
[1725881443827,37.5029435,130.15,130.08,49.30614478]
[1725881444025,37.5029435,130.15,130.07,20.0]
[1725881444432,37.5029435,130.15,130.08,4.30611592]
[1725881444645,37.5029435,130.15,130.09,4.30611592]
[1725881444944,37.5029435,130.15,130.07,20.0]
[1725881445133,37.5029435,130.15,130.08,4.30631962]
[1725881445442,37.5029435,130.15,130.09,4.30631962]
[1725881445652,37.5029435,130.15,130.07,20.0]
[1725881445844,37.5029435,130.15,130.08,4.30634199]
[1725881446149,37.5029435,130.15,130.09,4.30634199]
[1725881446448,45.1863435,130.15,130.07,20.0]
[1725881446757,45.1863435,130.15,130.08,4.30641411]
[1725881446952,45.1863435,130.15,130.09,4.30641411]
[1725881447131,45.1863435,130.15,130.07,20.0]
[1725881447334,45.1863435,130.15,130.08,4.30642441]
[1725881447642,45.1863435,130.15,130.09,4.30642441]
[1725881447848,45.1863435,130.15,130.07,20.0]
[1725881448139,45.1863435,130.15,130.08,4.30642441]
[1725881448346,45.1863435,130.15,130.09,4.30642441]
[1725881448540,45.1863435,130.15,130.07,20.0]
[1725881448739,45.1863435,130.15,130.08,4.30642441]
[1725881448945,45.1863435,130.15,130.09,4.30642441]
[1725881449133,45.1863435,130.15,130.07,20.0]
[1725881449336,45.1863435,130.15,130.08,4.30642298]
[1725881449544,45.1863435,130.15,130.09,4.30642298]
[1725881449733,45.1863435,130.15,130.07,20.0]
[1725881449952,45.1863435,130.15,130.08,4.30642298]
[1725881450144,45.1863435,130.15,130.09,4.30642298]
[1725881450345,45.1863435,130.15,130.07,20.0]
[1725881450651,45.1863435,130.15,130.08,4.30642298]
[1725881450850,45.1863435,130.15,130.07,20.0]
[1725881451156,45.1863435,130.15,130.06,15.89855996]
[1725881451358,45.1863435,130.15,130.07,20.0]
[1725881452154,27.86043495,130.14,130.07,20.0]
[1725881452533,15.1254,130.13,130.06,15.89855996]
[1725881453136,15.1254,130.13,130.03,6.5591]
[1725881453366,15.1254,130.13,130.05,15.89855996]
[1725881453540,15.1254,130.13,130.06,20.0]
[1725881457959,22.81,130.13,130.04,45.0]
[1725881458257,22.81,130.13,130.01,15.861]
[1725881458258,7.6852,130.12,130.03,15.89855996]
[1725881458458,6.4601,130.11,130.04,20.0]
[1725881458649,15.2475,130.1,130.04,20.0]
[1725881458842,15.2475,130.1,130.01,15.861]
[1725881459162,15.2475,130.1,130.02,15.89855996]
[1725881460056,15.2475,130.1,130.03,20.0]
[1725881462664,15.2475,130.1,130.02,15.89855996]
[1725881462847,15.2475,130.1,130.03,20.0]
[1725881463762,22.9339,130.1,130.03,20.0]
[1725881464060,15.2475,130.1,130.0,15.89855996]
[1725881464260,15.2475,130.1,130.01,65.0]
[1725881466743,50.0,130.13,130.01,65.0]
[1725881466744,6.2541,130.09,130.01,65.0]
[1725881466965,15.8247,130.08,130.01,65.0]
[1725881467653,23.5123,130.08,129.97,7.56571394]
[1725881467972,15.8247,130.08,130.01,15.89855996]
[1725881468270,15.8247,130.08,129.97,17.86496445]
[1725881468437,15.8247,130.08,130.0,15.89855996]
[1725881471354,15.8247,130.08,129.97,7.56571394]
[1725881471552,15.8247,130.08,129.99,15.89855996]
[1725881471866,15.8247,130.08,130.0,45.0]
[1725881472751,15.8247,130.08,130.01,15.89855996]
[1725881478160,15.8247,130.08,130.0,45.0]
[1725881478356,6.0127,130.07,130.01,20.0]
[1725881478549,16.1737,130.06,129.98,20.0]
[1725881483182,16.1737,130.06,129.99,45.0]
[1725881487282,16.1737,130.06,129.98,20.0]
[1725881487784,16.1218,130.04,129.93,10.29925051]
[1725881487979,6.6033,130.03,129.93,23.4642739]
[1725881488699,15.9419,130.02,129.93,7.56571394]
[1725881488907,15.9419,130.02,129.94,15.89855996]
[1725881489081,15.9419,130.02,129.95,20.0]
[1725881492379,15.9419,130.02,129.94,20.0]
[1725881493474,6.3171,130.01,129.94,20.0]
[1725881493679,16.287,130.0,129.94,20.0]
[1725881494196,16.287,130.0,129.94,37.43738885]
[1725881494401,16.287,130.0,129.95,45.0]
[1725881494691,16.287,130.0,129.96,21.53874017]
[1725881495091,16.287,130.0,129.96,20.0]
[1725881499495,16.287,130.0,129.96,21.53866416]
[1725881499701,16.287,130.0,129.96,35.89855996]
[1725881499996,22.3616,130.04,129.98,15.89855996]
[1725881500907,22.3616,130.04,129.97,47.46799818]
[1725881501108,22.3616,130.04,129.98,20.0]
[1725881504508,22.3616,130.04,129.97,20.0]
[1725881506282,22.3616,130.04,129.97,22.46799818]
[1725881506901,22.3616,130.04,129.97,20.0]
[1725881507089,22.3616,130.04,129.97,22.4678656]
[1725881507404,22.3616,130.04,129.97,20.0]
[1725881507626,22.3616,130.04,129.97,2.46786973]
[1725881507895,22.3616,130.04,129.95,22.46786973]
[1725881508104,22.3616,130.04,129.96,2.46786973]
[1725881508276,22.3616,130.04,129.97,2.46786973]
[1725881508473,22.3616,130.04,129.95,20.0]
[1725881508474,22.3616,130.04,129.96,2.46786973]
[1725881508692,22.3616,130.04,129.97,2.46786973]
[1725881508904,22.3616,130.04,129.96,2.46786973]
[1725881509205,22.3616,130.04,129.95,20.0]
[1725881509206,22.3616,130.04,129.97,2.46786973]
[1725881509498,22.3616,130.04,129.96,2.46786973]
[1725881509699,22.3616,130.04,129.97,2.46786973]
[1725881509899,22.3616,130.04,129.96,2.46786973]
[1725881510095,31.76202818,130.03,129.97,2.46786973]
[1725881510302,31.76202818,130.03,129.96,2.46786973]
[1725881510685,31.76202818,130.03,129.97,2.46786973]
[1725881510897,31.76202818,130.03,129.98,4.30960866]
[1725881511102,31.76202818,130.03,129.99,4.30960866]
[1725881511406,31.76202818,130.03,130.0,4.30960866]
[1725881511598,31.76202818,130.03,130.01,4.30960866]
[1725881511799,31.76202818,130.03,130.02,4.30960866]
[1725881512108,31.76202818,130.03,129.98,2.46786973]
[1725881512288,31.76202818,130.03,129.99,4.30957692]
[1725881512606,31.76202818,130.03,130.0,4.30957692]
[1725881512782,31.76202818,130.03,130.01,4.30957692]
[1725881512982,31.76202818,130.03,129.98,2.46786973]
[1725881513196,31.76202818,130.03,129.99,4.30969017]
[1725881513391,31.76202818,130.03,130.0,4.30969017]
[1725881513612,31.76202818,130.03,130.01,4.30969017]
[1725881513927,31.76202818,130.03,129.96,2.46786973]
[1725881514213,31.76202818,130.03,129.95,20.0]
[1725881514392,31.76202818,130.03,129.97,4.30973838]
[1725881514584,31.76202818,130.03,129.97,2.46797784]
[1725881515111,31.76202818,130.03,129.98,2.46797784]
[1725881515286,31.76202818,130.03,129.95,2.46797784]
[1725881515490,31.76202818,130.03,129.96,2.46797784]
[1725881515703,31.76202818,130.03,129.97,2.46797784]
[1725881515887,31.76202818,130.03,129.98,2.46797784]
[1725881516089,31.76202818,130.03,129.96,20.0]
[1725881516090,31.76202818,130.03,129.97,2.46797784]
[1725881516287,31.76202818,130.03,129.98,2.46797784]
[1725881516508,31.76202818,130.03,129.97,2.46797784]
[1725881516693,31.76202818,130.03,129.98,2.46797784]
[1725881516894,31.76202818,130.03,129.97,2.46797784]
[1725881517095,31.76202818,130.03,129.98,2.46797784]
[1725881517311,31.76202818,130.03,129.97,2.46797784]
[1725881517614,31.76202818,130.03,129.96,20.0]
[1725881517615,31.76202818,130.03,129.98,2.46797784]
[1725881517905,31.76202818,130.03,129.97,2.46797784]
[1725881518085,31.76202818,130.03,129.98,2.46797784]
[1725881518285,31.76202818,130.03,129.97,2.46797784]
[1725881518500,31.76202818,130.03,129.98,2.46797784]
[1725881518706,31.76202818,130.03,129.97,2.46797784]
[1725881518907,31.76202818,130.03,129.98,2.46797784]
[1725881519095,31.76202818,130.03,129.97,2.46797784]
[1725881519287,31.76202818,130.03,129.98,2.46797784]
[1725881519509,31.76202818,130.03,129.97,2.46797784]
[1725881519812,6.0355,130.01,129.98,2.46797784]
[1725881520011,38.25479517,130.01,129.97,2.46797784]
[1725881520212,38.25479517,130.01,129.96,2.46797784]
[1725881520429,38.25479517,130.01,129.97,2.46797784]
[1725881520592,38.25479517,130.01,129.98,2.46797784]
[1725881520793,38.25479517,130.01,129.96,2.46797784]
[1725881520992,38.25479517,130.01,129.97,2.46797784]
[1725881521202,38.25479517,130.01,129.98,2.46797784]
[1725881521387,38.25479517,130.01,129.96,2.46797784]
[1725881521594,38.25479517,130.01,129.97,2.46797784]
[1725881521901,38.25479517,130.01,129.94,2.46797784]
[1725881522100,38.25479517,130.01,129.95,2.46797784]
[1725881522411,38.25479517,130.01,129.96,2.46797784]
[1725881522610,38.25479517,130.01,129.97,2.46797784]
[1725881522791,38.25479517,130.01,129.98,2.46797784]
[1725881522987,38.25479517,130.01,129.96,2.46797784]
[1725881523215,38.25479517,130.01,129.97,2.46797784]
[1725881523508,38.25479517,130.01,129.95,20.0]
[1725881523706,38.25479517,130.01,129.98,2.46813846]
[1725881523905,38.25479517,130.01,129.96,2.46813846]
[1725881524212,38.25479517,130.01,129.97,2.46813846]
[1725881524413,38.25479517,130.01,129.98,2.46813846]
[1725881524716,38.25479517,130.01,129.99,2.46813846]
[1725881525032,32.21929517,130.01,130.0,2.4678334]
[1725881525186,32.21929517,130.01,129.97,22.4678334]
[1725881525387,32.21929517,130.01,129.98,2.4678334]
[1725881525701,32.21929517,130.01,129.99,2.4678334]
[1725881525904,32.21929517,130.01,130.0,2.4678334]
[1725881527024,32.21929517,130.01,129.97,20.0]
[1725881527344,32.21929517,130.01,130.0,2.46775146]
[1725881527515,32.21929517,130.01,129.98,45.0]
[1725881527724,32.21929517,130.01,129.98,47.46775232]
[1725881527895,32.21929517,130.01,129.99,2.46775232]
[1725881528101,32.21929517,130.01,130.0,2.46775232]
[1725881528617,32.21929517,130.01,130.0,18.36631228]
[1725881528807,32.21929517,130.01,130.0,83.36631228]
[1725881530992,32.21929517,130.01,130.0,38.36631228]
[1725881531291,32.21929517,130.01,130.0,22.46775232]
[1725881531492,32.21929517,130.01,130.0,2.46775232]
[1725881534503,32.21929517,130.01,129.98,2.46775232]
[1725881534813,32.21929517,130.01,129.99,2.46775232]
[1725881535020,32.21929517,130.01,129.98,2.46775232]
[1725881535201,32.21929517,130.01,129.99,2.46775232]
[1725881535401,32.21929517,130.01,129.97,2.46775232]
[1725881535601,32.21929517,130.01,129.98,2.46775232]
[1725881535813,32.21929517,130.01,129.99,2.46775232]
[1725881536011,32.21929517,130.01,129.97,2.46775232]
[1725881536323,32.21929517,130.01,129.98,2.46775232]
[1725881536526,32.21929517,130.01,129.99,2.46775232]
[1725881536818,32.21929517,130.01,129.99,2.46785937]
[1725881537118,32.21929517,130.01,129.97,2.46785937]
[1725881537723,32.21929517,130.01,129.98,2.46785937]
[1725881537927,32.21929517,130.01,129.99,2.46785937]
[1725881538107,32.21929517,130.01,130.0,2.46785937]
[1725881538304,32.21929517,130.01,129.97,2.46785937]
[1725881538505,32.21929517,130.01,129.98,2.46785937]
[1725881538726,32.21929517,130.01,129.99,2.46785937]
[1725881539026,32.21929517,130.01,129.96,20.0]
[1725881539194,32.21929517,130.01,129.97,2.46782628]
[1725881539400,32.21929517,130.01,129.98,2.46782628]
[1725881539599,32.21929517,130.01,129.99,2.46782628]
[1725881539898,32.21929517,130.01,129.96,20.0]
[1725881540313,32.21929517,130.01,129.97,2.46782628]
[1725881540505,32.21929517,130.01,129.97,4.93565256]
[1725881541121,32.21929517,130.01,129.98,2.46782628]
[1725881541334,32.21929517,130.01,129.99,2.46782628]
[1725881541541,32.21929517,130.01,129.97,2.46782628]
[1725881541711,32.21929517,130.01,129.98,2.46785908]
[1725881542104,32.21929517,130.01,129.99,2.46785908]
[1725881542305,32.21929517,130.01,129.98,2.46785908]
[1725881542505,32.21929517,130.01,129.99,2.46787059]
[1725881542724,32.21929517,130.01,129.97,2.46782628]
[1725881542927,32.21929517,130.01,129.98,2.4678703]
[1725881543225,32.21929517,130.01,129.99,2.4678703]
[1725881543433,32.21929517,130.01,129.97,2.46782628]
[1725881543928,32.21929517,130.01,129.97,18.36638624]
[1725881544137,32.21929517,130.01,129.98,2.46787088]
[1725881544424,32.21929517,130.01,130.0,15.89855996]
[1725881544630,32.21929517,130.01,130.0,18.36643084]
[1725881547018,32.21929517,130.01,130.0,15.89855996]
[1725881547407,32.21929517,130.01,130.0,18.36609467]
[1725881550331,32.21929517,130.01,130.0,15.89855996]
[1725881551013,32.21929517,130.01,130.0,18.36614789]
[1725881552423,32.21929517,130.01,130.0,2.46758793]
[1725881553938,32.21929517,130.01,129.99,65.0]
[1725881554143,32.21929517,130.01,130.0,2.4675758]
[1725881556823,32.21929517,130.01,130.0,2.46757993]
[1725881557338,32.21929517,130.01,130.0,18.36613989]
[1725881557549,32.21929517,130.01,130.0,63.36613989]
[1725881557845,32.21929517,130.01,130.0,60.89855996]
[1725881558134,32.21929517,130.01,130.0,63.36609501]
[1725881558523,32.21929517,130.01,130.0,63.36606201]
[1725881559637,32.21929517,130.01,130.0,83.36606201]
[1725881559850,6.054,130.07,130.0,83.36606201]
[1725881560032,6.054,130.07,130.03,15.89855996]
[1725881561732,6.054,130.07,130.02,2.46743346]
[1725881561940,6.054,130.07,130.02,47.46743346]
[1725881563217,6.054,130.07,129.97,15.5654]
[1725881563546,6.054,130.07,129.99,15.89855996]
[1725881563715,6.054,130.07,130.0,22.46746406]
[1725881563916,6.054,130.07,130.01,2.46746406]
[1725881564336,47.94748969,130.07,130.01,2.46746406]
[1725881564635,47.94748969,130.07,130.0,2.46746406]
[1725881564829,47.94748969,130.07,130.01,2.46746406]
[1725881565034,47.94748969,130.07,130.0,2.46746406]
[1725881565334,47.94748969,130.07,130.01,2.46746406]
[1725881565532,47.94748969,130.07,130.0,2.46746406]
[1725881565738,47.94748969,130.07,130.01,2.46746406]
[1725881565939,47.94748969,130.07,130.0,22.46746406]
[1725881566245,47.94748969,130.07,130.01,2.46746406]
[1725881567936,47.94748969,130.07,130.01,2.46749592]
[1725881568448,47.94748969,130.07,130.0,20.0]
[1725881574657,47.94748969,130.07,130.01,4.30854067]
[1725881574850,47.94748969,130.07,130.02,4.30854067]
[1725881575054,47.94748969,130.07,130.03,4.30854067]
[1725881575263,47.94748969,130.07,130.04,4.30854067]
[1725881575447,47.94748969,130.07,130.05,4.3086271]
[1725881575637,47.94748969,130.07,130.0,20.0]
[1725881575964,47.94748969,130.07,130.01,4.30862345]
[1725881576146,47.94748969,130.07,130.0,20.0]